bitfinex/quotes_ETHUSD_20241004
["timestamp","ask_amount","ask_price","bid_price","bid_amount"]
[1728063963925,4.12713,2423.0,2422.7,0.7754]
[1728063964281,4.12699,2423.1,2422.7,0.7754]
[1728063964481,8.25403,2423.1,2422.7,0.7754]
[1728063964778,4.12699,2423.1,2422.7,0.7754]
[1728063964975,4.12714,2423.0,2422.7,0.7754]
[1728063965177,4.1273,2422.9,2422.5,24.64055]
[1728063965428,4.1273,2422.9,2422.5,9.01547025]
[1728063965578,4.1273,2422.9,2422.5,4.92055]
[1728063965778,4.1273,2422.9,2422.4,7.96280565]
[1728063965779,4.12748,2422.8,2422.4,7.96280565]
[1728063966005,4.1273,2422.9,2422.4,7.96280565]
[1728063966205,4.1273,2422.9,2422.5,4.12795]
[1728063967283,4.1273,2422.9,2422.5,4.12788]
[1728063967483,4.1273,2422.9,2422.5,5.00339657]
[1728063967825,4.12713,2423.0,2422.5,9.13123657]
[1728063968047,7.96060565,2423.7,2422.8,4.59498565]
[1728063968048,4.12601,2423.7,2422.8,4.59498565]
[1728063968279,0.8108,2423.9,2422.8,4.59498565]
[1728063968280,4.93638,2423.9,2423.4,3.83468565]
[1728063968527,0.7543,2424.1,2423.6,3.83468565]
[1728063968740,4.87957,2424.1,2423.8,3.83468565]
[1728063968893,4.87957,2424.1,2423.7,4.12583]
[1728063969240,4.12516,2424.2,2423.7,4.12583]
[1728063969404,0.8055,2424.3,2423.7,4.87663]
[1728063969599,4.9305,2424.3,2423.8,4.12572]
[1728063969812,4.12509,2424.2,2423.8,5.40942357]
[1728063970217,4.1255,2424.0,2423.6,4.12604]
[1728063970439,4.12569,2423.9,2423.5,0.87809456]
[1728063970595,4.12592,2423.7,2423.3,4.93988]
[1728063970925,4.12592,2423.7,2423.1,0.8133]
[1728063971126,4.12622,2423.6,2423.1,4.94014]
[1728063971334,4.12592,2423.7,2423.2,4.12669]
[1728063971750,8.252,2423.7,2423.2,4.12669]
[1728063972036,4.12592,2423.7,2423.2,4.12669]
[1728063972198,4.12592,2423.7,2423.2,5.033373]
[1728063972399,0.7704,2423.8,2423.4,4.12631]
[1728063972601,4.12534,2424.1,2423.4,4.12631]
[1728063972602,0.8198,2424.1,2423.7,4.12585]
[1728063972856,0.8198,2424.3,2423.9,4.12555]
[1728063973135,0.8198,2424.3,2424.1,4.12524]
[1728063973498,0.8198,2424.3,2424.0,4.95051]
[1728063973696,0.8198,2424.3,2424.0,4.12539]
[1728063973899,0.8198,2424.3,2423.8,4.12573]
[1728063974636,4.92906,2424.5,2424.1,4.12514]
[1728063974844,0.8045,2424.5,2424.2,4.12503]
[1728063975203,4.12502,2424.3,2423.7,4.92218]
[1728063975420,0.8045,2424.5,2423.7,4.92218]
[1728063975421,4.9291,2424.5,2423.8,0.96382723]
[1728063975729,5.54784787,2424.7,2423.8,0.96382723]
[1728063975929,4.12444,2424.6,2424.1,4.12507]
[1728063976137,5.54784787,2424.7,2424.1,4.12507]
[1728063976349,4.12456,2424.5,2424.1,4.12507]
[1728063976559,4.12456,2424.5,2424.1,4.950111]
[1728063976732,4.12456,2424.5,2424.1,1.652441]
[1728063977024,4.12455,2424.6,2424.1,1.652441]
[1728063977223,4.12455,2424.6,2424.1,5.777571]
[1728063977479,4.12481,2424.4,2424.1,1.652441]
[1728063977768,8.24971,2424.4,2423.9,4.12547]
[1728063977934,4.12501,2424.3,2423.9,4.12547]
[1728063978146,4.92551,2424.3,2423.9,4.12547]
[1728063978445,4.1251,2424.2,2423.8,4.12573]
[1728063978864,4.1251,2424.2,2423.6,7.3]
[1728063979024,4.1251,2424.2,2423.6,11.42608]
[1728063979221,4.12542,2424.0,2423.6,11.42608]
[1728063979452,8.25096,2424.0,2423.6,7.3]
[1728063979652,4.12542,2424.0,2423.6,7.3]
[1728063980227,4.12525,2424.1,2423.6,11.42607]
[1728063980956,4.12544,2424.0,2423.6,11.42607]
[1728063981266,4.12525,2424.1,2423.6,11.42607]
[1728063981439,4.12525,2424.1,2423.6,13.05862]
[1728063981823,4.12525,2424.1,2423.7,4.12591]
[1728063982028,4.92553,2424.3,2423.8,4.12575]
[1728063982233,4.88985,2424.5,2424.0,4.12534]
[1728063982526,4.88978,2424.5,2424.0,4.12534]
[1728063982729,4.88978,2424.5,2424.1,4.12524]
[1728063982925,9.01451,2424.5,2424.0,4.12538]
[1728063983151,4.12475,2424.4,2424.0,4.12538]
[1728063983338,4.88978,2424.5,2424.1,4.12523]
[1728063983555,4.12473,2424.4,2424.0,5.031014]
[1728063983738,4.12501,2424.3,2423.9,0.8055]
[1728063983938,0.7967,2424.0,2423.6,11.42608]
[1728063984135,4.92212,2424.0,2423.6,11.42608]
[1728063984427,4.12571,2423.9,2423.6,7.3]
[1728063984667,4.12582,2423.8,2423.6,7.3]
[1728063984969,0.7967,2424.0,2423.5,4.12617]
[1728063984970,4.92219,2424.0,2423.5,4.12617]
[1728063985125,4.92219,2424.0,2423.6,4.12602]
[1728063985928,4.12558,2423.9,2423.5,4.618977]
[1728063986360,4.9222,2424.0,2423.6,4.12601]
[1728063986949,4.1256,2423.9,2423.5,4.619037]
[1728063987273,4.1258,2423.8,2423.5,19.72]
[1728063987573,4.12585,2423.8,2423.3,19.72]
[1728063987873,4.12629,2423.5,2423.3,19.72]
[1728063988174,4.12629,2423.5,2423.2,19.72]
[1728063988731,4.93642,2423.6,2423.2,23.84675]
[1728063989137,4.12626,2423.5,2423.2,19.72]
[1728063989367,4.12626,2423.5,2423.1,19.72]
[1728063989735,4.12626,2423.5,2423.1,23.84683]
[1728063990170,4.9364,2423.6,2423.2,4.12676]
[1728063990376,3.0,2424.1,2423.5,4.12622]
[1728063990377,4.93088,2423.9,2423.5,4.12622]
[1728063990577,4.93088,2423.9,2423.4,0.8218]
[1728063990578,0.7598,2424.1,2423.4,0.8218]
[1728063990778,4.12584,2423.8,2423.4,0.8218]
[1728063990979,4.12553,2424.0,2423.4,5.443032]
[1728063991243,4.12553,2424.0,2423.5,4.12622]
[1728063991244,4.12559,2423.9,2423.5,4.12622]
[1728063991592,4.88504,2424.1,2423.7,4.12582]
[1728063991759,4.12507,2424.2,2423.8,4.12572]
[1728063991946,0.7853,2424.3,2423.8,0.8186]
[1728063992140,0.7853,2424.3,2423.8,1.313042]
[1728063992346,4.91028,2424.3,2423.9,4.12558]
[1728063992659,4.12498,2424.3,2423.9,4.12546]
[1728063993391,8.25,2424.3,2423.9,4.12546]
[1728063993887,4.12498,2424.3,2423.9,4.12546]
[1728063994059,4.12498,2424.3,2424.0,0.5438502]
[1728063994578,4.12491,2424.3,2424.0,0.5438502]
[1728063994953,4.1253,2424.1,2423.8,1.313042]
[1728063995484,4.12551,2424.0,2423.8,0.8186]
[1728063995646,4.12551,2424.0,2423.6,4.92346]
[1728063995846,4.1253,2424.1,2423.6,4.92346]
[1728063995847,4.12475,2424.4,2423.6,0.7974]
[1728063996043,4.12544,2424.0,2423.6,0.7974]
[1728063997090,4.12544,2424.0,2423.6,4.92344]
[1728063997383,4.12544,2424.0,2423.6,5.8778842]
[1728063998002,4.12544,2424.0,2423.6,25.5978842]
[1728063998179,0.7626,2424.1,2423.7,4.12583]
[1728063998384,4.12521,2424.2,2423.8,4.12567]
[1728063999104,4.12517,2424.2,2423.6,21.4718442]
[1728063999304,4.12524,2424.1,2423.7,6.27307442]
[1728063999661,4.12524,2424.1,2423.7,10.39891442]
[1728064000292,4.12524,2424.1,2423.7,6.27299442]
[1728064000516,4.12524,2424.1,2423.7,10.39882442]
[1728064000802,4.12514,2424.2,2423.8,4.12571]
[1728064001965,4.88757,2424.3,2423.8,4.12571]
[1728064002167,4.12507,2424.2,2423.8,4.12571]
[1728064002675,4.8875,2424.3,2423.9,4.12551]
[1728064003056,7.12474,2424.4,2424.0,4.12534]
[1728064003260,4.94451,2424.5,2424.1,4.12516]
[1728064003261,4.12471,2424.5,2424.1,4.12516]
[1728064003460,8.24943,2424.5,2424.1,5.02649]
[1728064003695,4.12471,2424.5,2424.1,5.02649]
[1728064005110,8.24938,2424.5,2424.1,5.02649]
[1728064005268,4.12474,2424.4,2424.0,4.88818]
[1728064005499,4.12474,2424.4,2424.0,0.7628]
[1728064006032,4.12485,2424.4,2424.0,4.8882]
[1728064006225,4.12485,2424.4,2424.0,0.7628]
[1728064006431,4.12495,2424.3,2424.0,0.7628]
[1728064006940,5.59073787,2424.7,2423.7,0.8148]
[1728064006941,0.8097,2424.6,2423.7,0.8148]
[1728064007234,4.12527,2424.1,2423.7,4.94065]
[1728064008401,4.12527,2424.1,2423.8,4.12575]
[1728064008939,4.12527,2424.1,2423.7,4.94065]
[1728064009172,4.12527,2424.1,2423.7,0.8148]
[1728064009311,4.12548,2424.0,2423.7,0.8148]
[1728064010205,4.12527,2424.1,2423.7,0.8148]
[1728064010410,4.12527,2424.1,2423.7,4.94065]
[1728064010614,4.12544,2424.0,2423.7,0.8148]
[1728064010816,4.12561,2423.9,2423.7,0.8148]
[1728064011025,4.12561,2423.9,2423.4,23.84627]
[1728064011026,0.7735,2424.2,2423.5,4.12624]
[1728064011222,4.12542,2424.0,2423.6,6.589864]
[1728064012957,4.12542,2424.0,2423.7,4.12591]
[1728064013251,4.12542,2424.0,2423.6,2.463904]
[1728064013451,4.12542,2424.0,2423.6,6.589904]
[1728064014211,4.12542,2424.0,2423.6,10.715904]
[1728064014447,4.12542,2424.0,2423.6,6.589904]
[1728064015357,4.89861,2424.2,2423.8,4.12573]
[1728064015656,4.12501,2424.3,2423.9,4.12555]
[1728064016318,4.12518,2424.2,2423.8,4.93844]
[1728064017256,4.1253,2424.1,2423.8,0.8127]
[1728064018441,4.77218058,2424.1,2423.8,0.8127]
[1728064018826,0.64688058,2424.1,2423.8,4.93845]
[1728064020142,4.77213058,2424.1,2423.8,4.93845]
[1728064020764,4.77215058,2424.1,2423.8,0.8127]
[1728064021329,4.12547,2424.0,2423.8,0.8127]
[1728064021763,4.77218058,2424.1,2423.8,0.8127]
[1728064022142,4.12546,2424.0,2423.8,0.8127]
[1728064022866,4.12546,2424.0,2423.6,4.12607]
[1728064023073,4.12546,2424.0,2423.6,6.15359399]
[1728064025840,4.77216058,2424.1,2423.6,2.02752399]
[1728064026039,4.77216058,2424.1,2423.7,3.83190994]
[1728064026040,0.64688058,2424.1,2423.7,3.83190994]
[1728064026231,0.64688058,2424.1,2424.0,0.8276]
[1728064026429,0.64688058,2424.1,2423.8,4.12563]
[1728064026629,0.64688058,2424.1,2423.8,4.90603]
[1728064026948,0.64688058,2424.1,2423.8,10.31810399]
[1728064027143,0.64688058,2424.1,2423.8,6.19242399]
[1728064028450,0.64688058,2424.1,2423.8,4.12563]
[1728064028786,4.77214058,2424.1,2423.7,4.12588]
[1728064029285,4.1255,2424.0,2423.6,0.8155]
[1728064029572,4.12592,2423.7,2423.5,19.72]
[1728064029733,4.12592,2423.7,2423.3,4.9351]
[1728064030568,4.12592,2423.7,2423.3,0.8086]
[1728064030770,4.12615,2423.6,2423.3,0.8086]
[1728064030976,4.12617,2423.6,2423.3,0.8086]
[1728064032357,4.12595,2423.7,2423.3,4.93513]
[1728064032563,4.12609,2423.6,2423.3,0.8086]
[1728064033169,4.12609,2423.6,2423.3,4.93518]
[1728064033369,4.12599,2423.7,2423.3,4.9352]
[1728064033581,4.12648,2423.4,2423.0,4.94864]
[1728064034175,4.12642,2423.5,2423.1,4.12693]
[1728064034482,4.12675,2423.3,2422.8,1.61737003]
[1728064034771,4.12675,2423.3,2422.9,4.12722]
[1728064034940,4.12671,2423.3,2422.9,4.12722]
[1728064035552,4.12671,2423.3,2422.8,4.87895]
[1728064035752,4.12705,2423.1,2422.8,0.7515]
[1728064035991,4.12721,2423.0,2422.7,0.86587003]
[1728064036200,4.1273,2422.9,2422.7,0.86587003]
[1728064036360,4.12745,2422.8,2422.7,0.86587003]
[1728064036563,4.12745,2422.8,2422.6,0.86587003]
[1728064037008,4.1273,2422.9,2422.5,0.7533]
[1728064037296,8.25475,2422.9,2422.5,4.88124]
[1728064037503,4.1273,2422.9,2422.5,4.88124]
[1728064038096,4.12746,2422.8,2422.5,0.7533]
[1728064038660,4.12746,2422.8,2422.2,0.7517]
[1728064038661,0.7572,2422.7,2422.2,0.7517]
[1728064038913,0.7572,2422.7,2422.3,1.18836099]
[1728064039079,4.1278,2422.6,2422.2,4.88016]
[1728064039396,4.12806,2422.5,2422.2,0.7517]
[1728064039961,4.1278,2422.6,2422.2,0.7517]
[1728064040161,4.1278,2422.6,2422.2,4.88017]
[1728064040561,4.88483,2422.7,2422.3,7.96018994]
[1728064041074,4.88483,2422.7,2422.2,4.88017]
[1728064041075,4.12798,2422.5,2422.2,0.7517]
[1728064041466,4.12814,2422.4,2422.0,0.7818]
[1728064042088,4.12849,2422.2,2421.8,4.93483]
[1728064042293,4.12882,2422.0,2421.6,0.8057]
[1728064042597,4.12881,2422.0,2421.6,4.12942]
[1728064042896,4.12872,2422.1,2421.6,4.12942]
[1728064043529,4.12872,2422.1,2421.7,4.12931]
[1728064044288,0.7694,2422.3,2421.8,0.7998]
[1728064044507,3.0,2422.8,2421.8,0.7998]
[1728064044508,4.12781,2422.6,2422.1,7.96047994]
[1728064044709,4.95533,2422.7,2422.2,0.7998]
[1728064044911,4.12797,2422.5,2422.2,0.7998]
[1728064045109,4.12844,2422.3,2421.9,4.63170994]
[1728064045331,8.25683,2422.3,2421.9,4.63170994]
[1728064045600,4.1285,2422.2,2421.9,0.7998]
[1728064045800,4.1285,2422.2,2421.7,4.63170994]
[1728064046036,4.12865,2422.1,2421.7,4.63170994]
[1728064046334,4.1285,2422.2,2421.7,8.76102994]
[1728064046631,4.12826,2422.4,2421.9,7.96081994]
[1728064046934,4.12826,2422.4,2422.0,4.12878]
[1728064047091,4.12822,2422.4,2421.9,12.08969994]
[1728064047987,4.12822,2422.4,2421.9,7.96078994]
[1728064048237,4.12798,2422.5,2422.1,0.8027]
[1728064048389,4.12784,2422.6,2422.1,8.76324994]
[1728064048588,4.12797,2422.5,2422.1,0.8027]
[1728064048788,8.25607,2422.5,2422.1,0.8027]
[1728064048988,4.12816,2422.4,2422.1,0.8027]
[1728064049506,4.12803,2422.5,2422.1,4.93127]
[1728064049839,0.7679,2422.9,2422.3,3.83190994]
[1728064050129,4.89486,2423.1,2422.7,7.95951994]
[1728064050544,4.89464,2423.3,2422.9,3.83190994]
[1728064050850,4.8946,2423.3,2422.9,3.83190994]
[1728064051002,4.89459,2423.3,2422.8,4.94415]
[1728064051209,4.12704,2423.1,2422.7,4.12759]
[1728064051508,4.12704,2423.1,2422.7,4.12754]
[1728064051768,4.12704,2423.1,2422.7,9.13267499]
[1728064052047,4.12679,2423.2,2422.7,8.83704493]
[1728064052202,4.12661,2423.3,2422.8,4.1274]
[1728064052406,4.12718,2423.0,2422.7,0.87761499]
[1728064052605,4.12718,2423.0,2422.6,4.94447]
[1728064053031,4.12679,2423.2,2422.6,4.94447]
[1728064053254,4.12679,2423.2,2422.7,4.12758]
[1728064053415,4.12679,2423.2,2422.8,4.12744]
[1728064053819,4.12663,2423.3,2422.8,0.907172]
[1728064054021,4.12663,2423.3,2422.9,4.12721]
[1728064054244,8.25314,2423.4,2422.9,4.12716]
[1728064054481,8.25314,2423.4,2422.9,8.25436]
[1728064054482,4.12657,2423.4,2422.9,8.25436]
[1728064054769,4.12652,2423.4,2422.9,8.25436]
[1728064054922,4.12652,2423.4,2423.0,4.1271]
[1728064055121,8.25306,2423.4,2422.9,4.12716]
[1728064055322,4.12652,2423.4,2422.9,8.25434]
[1728064055585,4.92729,2423.5,2422.9,9.25843213]
[1728064055723,4.12629,2423.5,2423.1,4.12687]
[1728064056863,4.12621,2423.6,2423.2,4.1267]
[1728064057017,4.12594,2423.7,2423.2,4.1267]
[1728064057423,4.12594,2423.7,2423.3,7.95849994]
[1728064059028,8.25198,2423.7,2423.3,7.95849994]
[1728064059229,8.25198,2423.7,2423.3,3.83190994]
[1728064059965,4.12594,2423.7,2423.3,3.83190994]
[1728064060167,8.25203,2423.7,2423.3,3.83190994]
[1728064060375,4.1261,2423.6,2423.2,4.12673]
[1728064060672,4.12594,2423.7,2423.3,1.20854299]
[1728064060829,4.12594,2423.7,2423.3,5.33514299]
[1728064061031,4.12569,2423.9,2423.5,8.77383994]
[1728064061261,4.12569,2423.9,2423.6,3.83190994]
[1728064062242,4.12575,2423.8,2423.6,3.83190994]
[1728064062469,4.1256,2423.9,2423.6,3.83190994]
[1728064063280,4.1256,2423.9,2423.3,1.20854299]
[1728064063281,4.12603,2423.7,2423.3,1.96414299]
[1728064063481,8.25207,2423.7,2423.3,0.7556]
[1728064063982,4.12603,2423.7,2423.3,0.7556]
[1728064064337,4.12577,2423.8,2423.3,4.88212]
[1728064065483,4.12594,2423.7,2423.3,4.88212]
[1728064065941,4.12594,2423.7,2423.3,6.16618399]
[1728064066144,4.12572,2423.9,2423.4,4.12642]
[1728064066342,4.12572,2423.9,2423.4,8.25275]
[1728064066770,0.64688058,2424.1,2423.5,0.7817]
[1728064066982,0.64688058,2424.1,2423.8,7.95752994]
[1728064067146,0.64688058,2424.1,2423.8,12.08318994]
[1728064067576,0.64688058,2424.1,2423.8,3.83190994]
[1728064067748,0.64688058,2424.1,2423.6,4.12593]
[1728064067749,4.77214058,2424.1,2423.7,4.12591]
[1728064068752,0.64688058,2424.1,2423.7,4.12591]
[1728064068985,0.64688058,2424.1,2423.7,4.1259]
[1728064069590,0.64688058,2424.1,2423.8,4.12572]
[1728064069750,4.77213058,2424.1,2423.7,4.1259]
[1728064070270,0.64688058,2424.1,2423.8,4.12571]
[1728064070658,0.64688058,2424.1,2423.6,3.83190994]
[1728064070854,0.64688058,2424.1,2423.7,4.58714099]
[1728064071057,0.64688058,2424.1,2423.8,4.12571]
[1728064071266,0.64688058,2424.1,2423.9,4.12557]
[1728064072492,0.64688058,2424.1,2423.9,4.89097]
[1728064074681,0.64688058,2424.1,2423.9,0.7654]
[1728064076283,0.64688058,2424.1,2423.7,4.58712099]
[1728064076485,0.64688058,2424.1,2423.8,4.12573]
[1728064077991,0.64688058,2424.1,2424.0,8.75381994]
[1728064078552,4.12443,2424.6,2424.2,4.12491]
[1728064078895,0.8291,2424.7,2424.3,7.95676994]
[1728064079095,4.1239,2424.9,2424.5,7.95644994]
[1728064079593,4.12407,2424.8,2424.5,3.83190994]
[1728064080197,4.1239,2424.9,2424.5,7.95645994]
[1728064080494,4.1239,2424.9,2424.5,7.95643994]
[1728064080732,4.12422,2424.7,2424.4,0.7825]
[1728064080878,4.12422,2424.7,2423.8,1.33154609]
[1728064080879,4.12465,2424.5,2424.1,7.95712994]
[1728064081079,8.24929,2424.5,2424.1,7.95712994]
[1728064081305,8.24929,2424.5,2424.1,4.12522]
[1728064081627,4.12492,2424.3,2424.0,4.63090994]
[1728064081926,4.12501,2424.3,2424.0,4.63090994]
[1728064082117,0.7866,2424.6,2424.0,3.83190994]
[1728064082118,4.12482,2424.4,2424.0,3.83190994]
[1728064082493,4.9111,2424.6,2424.2,3.83190994]
[1728064082692,4.12464,2424.5,2424.2,3.83190994]
[1728064083233,4.12424,2424.7,2424.4,3.83190994]
[1728064083383,4.12408,2424.8,2424.4,7.95662994]
[1728064083720,4.12408,2424.8,2424.5,1.28783899]
[1728064083888,4.12408,2424.8,2424.4,7.95662994]
[1728064085633,4.12389,2424.9,2424.5,4.12448]
[1728064085931,4.12389,2424.9,2424.4,3.83190994]
[1728064086083,4.12412,2424.8,2424.4,7.95660994]
[1728064086289,4.12412,2424.8,2424.5,1.28784699]
[1728064086489,4.12391,2424.9,2424.5,5.41238699]
[1728064087312,4.12391,2424.9,2424.6,3.83190994]
[1728064087908,4.89896,2425.1,2424.7,0.78]
[1728064088110,4.12376,2425.0,2424.7,0.78]
[1728064088944,4.1239,2424.9,2424.7,0.78]
[1728064090051,4.12438,2424.7,2424.4,3.83190994]
[1728064090405,4.12378,2425.0,2424.6,7.95627994]
[1728064091340,4.12378,2425.0,2424.7,0.773]
[1728064092246,4.12378,2425.0,2424.7,1.64592799]
[1728064092770,4.1239,2424.9,2424.7,1.64592799]
[1728064093418,4.12375,2425.0,2424.7,1.64592799]
[1728064093619,0.6466646,2424.9,2424.7,1.64592799]
[1728064094247,4.7705646,2424.9,2424.7,1.64592799]
[1728064094834,4.7705646,2424.9,2424.8,4.37969373]
[1728064095040,0.6466646,2424.9,2424.8,8.50374373]
[1728064096524,0.6466646,2424.9,2424.8,9.28264373]
[1728064097460,0.6466646,2424.9,2424.8,29.55264373]
[1728064098129,0.19500913,2424.9,2424.8,29.55264373]
[1728064098641,4.1226,2425.7,2425.3,0.7832]
[1728064098883,4.1226,2425.7,2425.4,0.902982]
[1728064099236,4.76908633,2425.7,2425.4,0.902982]
[1728064100356,0.64648633,2425.7,2425.4,0.902982]
[1728064100669,4.12286,2425.5,2425.1,8.71765994]
[1728064101271,4.76901633,2425.7,2425.3,3.83190994]
[1728064101441,4.76901633,2425.7,2425.3,7.95509994]
[1728064101442,0.64648633,2425.7,2425.3,7.95509994]
[1728064101636,0.64648633,2425.7,2425.5,0.792]
[1728064102140,4.76901633,2425.7,2425.5,0.792]
[1728064102871,0.7773,2425.9,2425.5,0.792]
[1728064103040,4.12238,2425.8,2425.5,0.792]
[1728064103445,8.24483,2425.8,2425.5,0.792]
[1728064103673,4.12238,2425.8,2425.5,0.792]
[1728064103874,8.24483,2425.8,2425.5,0.792]
[1728064104032,4.12238,2425.8,2425.5,0.792]
[1728064104237,4.12253,2425.7,2425.5,0.792]
[1728064104659,0.64648116,2426.0,2425.5,9.70087093]
[1728064104872,4.12211,2426.0,2425.7,3.83190994]
[1728064105089,4.12195,2426.1,2425.7,3.83190994]
[1728064105237,4.12203,2426.0,2425.8,0.8198]
[1728064107160,4.12218,2425.9,2425.8,0.8198]
[1728064107480,4.12203,2426.0,2425.8,0.8198]
[1728064107973,4.12218,2425.9,2425.8,0.8198]
[1728064108483,4.12203,2426.0,2425.8,0.8198]
[1728064108484,4.12207,2426.0,2425.8,0.8198]
[1728064108685,8.2442,2426.0,2425.8,0.8198]
[1728064109042,4.12231,2425.9,2425.7,3.83190994]
[1728064109876,4.12231,2425.9,2425.6,0.774]
[1728064111001,4.12235,2425.8,2425.6,0.774]
[1728064111302,4.12283,2425.6,2425.3,0.7635]
[1728064111590,4.12283,2425.6,2425.1,15.25540994]
[1728064111591,4.12311,2425.4,2425.1,4.59540994]
[1728064111943,4.88207,2425.6,2425.1,4.59540994]
[1728064112182,4.88207,2425.6,2425.1,8.71893994]
[1728064112183,4.12289,2425.5,2425.1,8.71893994]
[1728064112382,4.12289,2425.5,2425.1,11.97519793]
[1728064112544,4.12289,2425.5,2425.1,16.09866793]
[1728064112749,4.12289,2425.5,2425.1,11.97513793]
[1728064113679,4.12289,2425.5,2425.1,11.97512793]
[1728064113864,9.00485,2425.6,2425.1,16.09853793]
[1728064114188,9.00487,2425.6,2425.2,3.40389538]
[1728064114353,4.88207,2425.6,2425.2,3.40389538]
[1728064114684,4.12277,2425.6,2425.3,3.83190994]
[1728064114885,4.12258,2425.7,2425.3,7.95507994]
[1728064115049,4.12258,2425.7,2425.3,3.83190994]
[1728064115050,4.12274,2425.6,2425.3,3.83190994]
[1728064115245,4.1229,2425.5,2425.3,3.83190994]
[1728064115461,4.1229,2425.5,2425.1,8.71877994]
[1728064115760,0.7924,2425.8,2425.0,19.72]
[1728064115761,4.12327,2425.3,2425.0,19.72]
[1728064115970,0.7924,2425.8,2425.0,19.72]
[1728064115971,4.12298,2425.5,2425.0,19.72]
[1728064116145,8.24653,2425.3,2425.0,19.72]
[1728064116350,8.24653,2425.3,2424.9,8.75731994]
[1728064116549,4.12322,2425.3,2424.9,8.75731994]
[1728064116902,4.12322,2425.3,2424.9,10.04546293]
[1728064117182,8.24655,2425.3,2424.9,10.04465733]
[1728064117397,4.12339,2425.2,2424.9,4.63264434]
[1728064117544,4.12361,2425.1,2424.7,4.60550994]
[1728064117750,4.12391,2424.9,2424.5,8.73004994]
[1728064118077,4.12391,2424.9,2424.5,8.72999994]
[1728064118281,4.95492,2425.0,2424.6,4.12437]
[1728064119170,9.07878,2425.0,2424.6,4.12437]
[1728064119494,4.12391,2424.9,2424.5,9.60305993]
[1728064122112,0.8312,2425.0,2424.5,9.60297993]
[1728064122329,4.124,2424.9,2424.5,5.47850993]
[1728064123358,4.124,2424.9,2424.5,9.60304993]
[1728064124705,4.955,2425.0,2424.7,3.83190994]
[1728064125205,7.12329,2425.3,2424.9,7.95571994]
[1728064125389,4.12343,2425.2,2424.9,4.64380994]
[1728064126578,9.01952,2425.0,2424.7,5.20465193]
[1728064126783,4.12389,2424.9,2424.5,8.82943993]
[1728064127310,0.772,2425.0,2424.7,3.83190994]
[1728064127513,4.89572,2425.0,2424.7,3.83190994]
[1728064129417,4.12372,2425.0,2424.7,3.83190994]
[1728064129642,4.1237,2425.1,2424.9,3.83190994]
[1728064129919,4.12339,2425.2,2424.9,4.62790994]
[1728064130419,4.12358,2425.1,2424.9,4.62790994]
[1728064130884,0.7718,2425.4,2424.9,4.62790994]
[1728064131085,4.12344,2425.2,2424.9,3.83190994]
[1728064131291,4.12328,2425.3,2424.9,3.83190994]
[1728064131518,4.12351,2425.2,2424.9,3.83190994]
[1728064131822,4.12356,2425.1,2424.9,3.83190994]
[1728064132130,4.1234,2425.2,2424.9,3.83190994]
[1728064132287,8.24685,2425.2,2424.9,3.83190994]
[1728064132625,8.24685,2425.2,2424.8,4.91966899]
[1728064132918,4.1234,2425.2,2424.8,4.91966899]
[1728064133119,4.1234,2425.2,2424.9,0.95577789]
[1728064133280,4.12362,2425.1,2424.8,0.79562899]
[1728064134110,4.1234,2425.2,2424.8,0.79562899]
[1728064134321,4.1234,2425.2,2424.9,3.83190994]
[1728064134822,8.24689,2425.2,2424.9,3.83190994]
[1728064134981,4.1234,2425.2,2424.9,3.83190994]
[1728064135520,4.12371,2425.0,2424.9,3.83190994]
[1728064135931,4.12371,2425.0,2424.8,0.79562899]
[1728064136291,4.12357,2425.1,2424.8,0.79562899]
[1728064136492,4.12341,2425.2,2424.8,4.91965899]
[1728064137122,4.12341,2425.2,2424.8,4.91959899]
[1728064137429,4.12341,2425.2,2424.9,1.36819689]
[1728064137584,4.12341,2425.2,2424.8,4.91959899]
[1728064137782,8.24692,2425.2,2424.8,4.91959899]
[1728064137986,8.24692,2425.2,2424.8,0.79562899]
[1728064137987,4.12365,2425.1,2424.8,0.79562899]
[1728064138790,4.1234,2425.2,2424.8,4.91965899]
[1728064138990,4.1234,2425.2,2424.9,3.83190994]
[1728064140489,4.12341,2425.2,2424.9,3.83190994]
[1728064140715,4.12321,2425.3,2424.9,9.32396983]
[1728064141297,4.12316,2425.4,2425.1,3.83190994]
[1728064141625,7.15061588,2426.2,2425.4,4.90697]
[1728064141626,4.9002,2425.9,2425.4,4.90697]
[1728064141798,4.9002,2425.9,2425.3,3.83190994]
[1728064141799,4.1227,2425.6,2425.3,3.83190994]
[1728064141999,0.7779,2425.6,2424.9,25.70419983]
[1728064142224,4.12349,2425.2,2424.9,0.7841]
[1728064142430,4.90139,2425.2,2424.8,4.12394]
[1728064142786,4.90129,2425.2,2424.8,4.12394]
[1728064143187,4.12354,2425.1,2424.7,8.74018994]
[1728064143436,4.12371,2425.0,2424.7,0.7841]
[1728064143654,0.7779,2425.2,2424.5,28.54939993]
[1728064143655,4.12395,2424.9,2424.5,29.36088993]
[1728064143930,8.2472,2425.1,2424.6,7.47291899]
[1728064144137,0.7779,2425.2,2424.7,7.95611994]
[1728064144305,0.7779,2425.2,2424.9,3.83190994]
[1728064144306,4.90136,2425.2,2424.9,3.83190994]
[1728064144493,4.12346,2425.2,2424.9,4.64340994]
[1728064144693,4.12326,2425.3,2424.9,4.64340994]
[1728064145001,4.12345,2425.2,2424.9,3.83190994]
[1728064145191,0.7726,2425.1,2424.6,0.8115]
[1728064145390,4.12378,2425.0,2424.6,4.93588]
[1728064147117,0.7726,2425.1,2424.5,3.83190994]
[1728064147318,0.7751,2424.6,2424.1,4.65190994]
[1728064147508,0.7751,2424.6,2423.7,1.29880505]
[1728064147509,0.7751,2424.3,2423.7,4.94093]
[1728064147724,4.12516,2424.2,2423.7,6.25161]
[1728064148026,4.90002,2424.3,2423.7,6.2516]